Workbook

Sheet CALCUL DU TARIF 2025
A1: Calcul du tarif de garde des enfants | F1: Tarif 2025
A2: Famille:
A6: familles mariées ou monoparentales | C6: remplir la première colonne en fonction des données de l'avis de taxation fiscale ou la FriTax
A7: familles en union libre | C7: remplir les deux colonnes en fonction des données de l'avis de taxation fiscale ou la FriTax
A9: Nombre d'enfants à charge | C9: 0 | F9: =TODAY() -> 2025-04-02
A11: Si l'avis de taxation n'est pas disponible, utiliser la déclaration FriTax, inscrire F 1 | C11: 0 | D11: noter l'année de référence de F | E11: =IF(C11=0,"AVIS de TAXATION","FriTax") -> AVIS de TAXATION | F11: 2024
A13: Personnes salariées/rentières | D13: 1er avis de taxation | E13: 2ème avis de taxation | F13: Montants pris en compte dans le calcul du revenu déterminant
A14: 4.91 | B14: Revenu net | D14: 0 | E14: 0 | F14: =D14+E14 -> 0
A15: A rajouter les postes suivants: | D15: (mettre les valeurs en positif)
A16: 4.11 | B16: Caisse-maladie et accidents | D16: 0 | E16: 0 | F16: =D16+E16 -> 0
A17: 4.12 | B17: Autres primes et cotisations | D17: 0 | E17: 0 | F17: 0
A18: 4.13 | B18: Primes prévoyance liée 3a | D18: 0 | E18: 0 | F18: 0
A19: 4.14 | B19: 2ème pilier, caisse de pension | D19: 0 | E19: 0 | F19: =D19+E19 -> 0
A20: 4.21 | B20: Dettes privées (part > fr. 30'000.00) | D20: 0 | E20: 0 | F20: =IF((D20+E20)>30000,((D20+E20)-30000),0) -> 0
A21: 4.31 | B21: Frais d'immeubles privés (part > fr. 15'000.00) | D21: 0 | E21: 0 | F21: =IF((D21+E21)>15000,((D21+E21)-15000),0) -> 0
A22: A rajouter la "fortune imposable" (¹ revenu)
A23: 7.91 | B23: Fortune imposable (vingtième soit 5%) | D23: 0 | E23: 0 | F23: =(D23+E23)*5% -> 0
A25: Personnes imposées à la source | D25: 1er avis de taxation | F25: Montants pris en compte dans le calcul du revenu déterminant
A26: Revenu brut soumis à l'impôt | B26: pris en compte à 80% | D26: 0 | E26: 0 | F26: =(D26+E26)*80% -> 0
A27: Fortune imposable | B27: Fortune imposable (vingtième soit 5%) | D27: 0 | E27: 0
F29: =IF(C9>=2,(C9-1)*-11500,0) -> 0
F30: =SUM(F14:F23,F26:F27,F29) -> 0
A31: =IF(C11=1,"REVENU déterminant pour le tarif: base FriTax","REVENU déterminant pour le tarif: base AVIS DE TAXATION") -> REVENU déterminant pour le tarif: base AVIS DE TAXATION | F31: =IF(C11=1,VLOOKUP(SUM(F14:F23,F26:F27,F29),'TARIFS 2025'!A3:N35,5,4),SUM(F14:F23,F26:F27,F29)) -> 0
A33: Ces tarifs sont indicatifs, les tarifs définitifs sont transmis par la FAEF sur le contrat de placement.
A34: Tarif à payer pour les parents | D34: Crèche | E34: 1-2H | F34: 3-8H
D35: =IF(F31=0,"xx",VLOOKUP($F$31,'TARIFS 2025'!A3:N35,7,4)) -> xx | E35: =IF(F31=0,"xx",VLOOKUP($F$31,'TARIFS 2025'!$A$3:$N$35,10,4)) -> xx | F35: =IF(F31=0,"xx",VLOOKUP($F$31,'TARIFS 2025'!A3:N35,13,4)) -> xx
A37: Subvention communale | D37: =IF(F31=0,"xx",VLOOKUP($F$31,'TARIFS 2025'!A3:N35,8,4)) -> xx | E37: =IF(F31=0,"xx",VLOOKUP($F$31,'TARIFS 2025'!A3:N35,11,4)) -> xx | F37: =IF(F31=0,"xx",VLOOKUP($F$31,'TARIFS 2025'!A3:N35,11,4)) -> xx
A38: Subvention Etat-Employeurs | D38: 15.55 | E38: 1.3 | F38: 0
A39: Mesure "réforme fiscale" | D39: 7.2
A40: Ces tarifs sont applicables aux enfants domiciliés dans la commune de Villars-sur-Glâne. Pour les enfants domiciliés dans une autre commune, veuillez-vous adresser au secrétariat. | D40: La matinée est facturée à 55% du prix journalier, l'après-midi à 45% du prix journalier | E40: Les plages horaires sont facturées en entier, le tarif horaire est indicatif. Pour plus de détails, voir la Grille tarifaire de la Fondation

Sheet Indépendant
A1: Calcul du tarif de garde des enfants | G1: Tarif 2021
A2: Famille:
A4: L’(es) avis de taxation à produire est(sont) celui(ceux) notifié(s) l’année précédant l’année durant laquelle l’enfant est placé. Si celui-ci(ceux-ci) n’est(ne sont) pas disponible(s), les représentants légaux produisent, à titre provisoire, leur(s) dernière(s) déclaration(s) d’impôts FriTax. Le tarif appliqué provisoirement est alors majoré de deux échelons. Dès réception de l'avis de taxation, le tarif définitif est alors appliqué avec effet rétroactif au 1er janvier de l'année en cours.
A6: familles mariées ou monoparentales | C6: remplir la première colonne en fonction des données de l'avis de taxation fiscale ou la FriTax
A7: familles en union libre | C7: remplir les deux colonnes en fonction des données de l'avis de taxation fiscale ou la FriTax
A9: Nombre d'enfants à charge | C9: 0 | D9: inscrire le nombre d'enfant(s) à charge E figurant sur l'avis de taxation | G9: =TODAY() -> 2025-04-02
A11: Si l'avis de taxation n'est pas disponible, utiliser la déclaration FriTax, inscrire F 1 | C11: 0 | D11: noter l'année de référence de F | E11: =IF(C11=0,"AVIS de TAXATION","FriTax") -> AVIS de TAXATION | G11: 2023
A13: Indépendants | D13: 1er avis de taxation | E13: 2ème avis de taxation | F13: Indépendant | G13: Montants pris en compte dans le calcul du revenu déterminant
A14: 4.91 | B14: Revenu net | D14: 0 | E14: 0 | F14: 0 | G14: =D14+E14+F14 -> 0
A15: A rajouter les postes suivants: | D15: (mettre les valeurs en positif)
A16: 4.11 | B16: Caisse-maladie et accidents | D16: 0 | E16: 0 | F16: 0 | G16: =D16+E16+F16 -> 0
A17: 4.12 | B17: Autres primes et cotisations | D17: 0 | E17: 0 | F17: 0 | G17: =D17+E17+F17 -> 0
A18: code 4.130 | B18: Prime prévoyances liées 3a | D18: 0 | E18: 0 | F18: 0 | G18: =D18+E18+F18 -> 0
A19: 4.14 | B19: 2ème pilier, caisse de pension (part > fr. 15'000.00) | D19: 0 | E19: 0 | F19: 0 | G19: =IF((D19+E19+F19)>15000,((D19+E19+F19)-15000),0) -> 0
A20: 4.21 | B20: Dettes privées (part > fr. 30'000.00) | D20: 0 | E20: 0 | F20: 0 | G20: =IF((D20+E20+F20)>30000,((D20+E20+F20)-30000),0) -> 0
A21: 4.31 | B21: Frais d'immeubles privés (part > fr. 15'000.00) | D21: 0 | E21: 0 | F21: 0 | G21: =IF((D21+E21+F21)>15000,((D21+E21+F21)-15000),0) -> 0
A22: A rajouter la "fortune imposable" (¹ revenu) | D22: (seulement les montants positifs)
A23: 7.91 | B23: Fortune imposable (vingtième soit 5%) | D23: 0 | E23: 0 | F23: 0 | G23: =(D23+E23+F23)*5% -> 0
A25: Personnes imposées à la source | D25: 1er avis de taxation | E25: 2ème avis de taxation | G25: Montants pris en compte dans le calcul du revenu déterminant
A26: Revenu brut soumis à l'impôt | B26: pris en compte à 80% | D26: 0 | E26: 0 | F26: 0 | G26: =(D26+E26+F26)*0.8 -> 0
A27: Fortune imposable | B27: Fortune imposable (vingtième soit 5%) | D27: 0 | E27: 0 | F27: 0 | G27: =(D27+E27+F27)*5% -> 0
A29: Déduction enfant(s) à charge (- fr. 11'500.00 par enfant, dès le 2ème enfant à charge) | G29: =IF(C9>=2,(C9-1)*-11500,0) -> 0
G30: =SUM(G14:G23,G26:G27,G29) -> 0
A31: =IF(C11=1,"REVENU déterminant pour le tarif: base FriTax","REVENU déterminant pour le tarif: base AVIS DE TAXATION") -> REVENU déterminant pour le tarif: base AVIS DE TAXATION | G31: =IF(C11=1,VLOOKUP(SUM(G14:G23,G26:G27,G29),'TARIFS 2025'!A3:N35,5,4),SUM(G14:G23,G26:G27,G29)) -> 0
A34: Tarif à payer pour les parents | D34: Crèche | E34: 1-2H | G34: 3-8H
D35: =IF(G31=0,"xx",VLOOKUP($G$31,'TARIFS 2025'!A3:N35,7,4)) -> xx | E35: =IF(G31=0,"xx",VLOOKUP($G$31,'TARIFS 2025'!$A$3:$N$35,10,4)) -> xx | G35: =IF(G31=0,"xx",VLOOKUP($G$31,'TARIFS 2025'!A3:N35,13,4)) -> xx
A37: Subvention communale | D37: =IF(G31=0,"xx",VLOOKUP($G$31,'TARIFS 2025'!A3:N35,8,4)) -> xx | E37: =IF(G31=0,"xx",VLOOKUP($G$31,'TARIFS 2025'!A3:N35,11,4)) -> xx | G37: =IF(G31=0,"xx",VLOOKUP($G$31,'TARIFS 2025'!A3:N35,11,4)) -> xx
A38: Subvention Etat-Employeurs | D38: 15.55 | E38: 1.3 | G38: 0
A39: Mesure "réforme fiscale" | D39: 7.2
A40: Ces tarifs sont applicables aux enfants domiciliés dans la commune de Villars-sur-Glâne. Pour les enfants domiciliés dans une autre commune, veuillez-vous adresser au secrétariat. | D40: La matinée est facturée à 55% du prix journalier, l'après-midi à 45% du prix journalier | E40: Les plages horaires sont facturées en entier, le tarif horaire est indicatif. Pour plus de détails, voir la Grille tarifaire de la Fondation

Sheet TARIFS 2025
A1: ECHELLE DES TARIFS 2015 | G1: Crèche | J1: 1-2H | M1: 3-8H | O1: 6.9
A2: REVENU DETERMINANT | E2: si FriTax | G2: Tarifs enfants Crèche par jour | H2: Subvention communale par heure de garde | J2: Tarifs enfants AVANT-PRIMAIRE par heure de garde | K2: Subvention communale par heure de garde | M2: Tarifs enfants PRIMAIRE par heure de garde | N2: Subvention communale par heure de garde | O2: =135/11.75 -> 11.4893617 | P2: =135-15.55-7.2 -> 112.25
A3: -10000 | B3: à | C3: 40000 | E3: =A5 -> 43501 | G3: 15.1 | H3: =$P$2-G3 -> 97.15 | J3: 0.85 | K3: =$O$2-J3-$O$3 -> 9.33893617 | M3: =J3+1.3 -> 2.15 | N3: =$O$2-M3 -> 9.339361702 | O3: =15.28/11.75 -> 1.300425532
A4: 40001 | B4: à | C4: 43500 | E4: =A6 -> 47001 | G4: 15.2 | H4: =$P$2-G4 -> 97.05 | J4: 0.9 | K4: =$O$2-J4-$O$3 -> 9.28893617 | M4: =J4+1.3 -> 2.2 | N4: =$O$2-M4 -> 9.289361702
A5: 43501 | B5: à | C5: 47000 | E5: 50501 | G5: 15.25 | H5: =$P$2-G5 -> 97 | J5: 1.05 | K5: 9.13893617 | M5: 2.35 | N5: 9.139361702
A6: 47001 | B6: à | C6: 50500 | E6: 54001 | G6: 15.25 | H6: 97 | J6: 1.15 | K6: 9.03893617 | M6: 2.45 | N6: 9.039361702
A7: 50501 | B7: à | C7: 54000 | E7: 57501 | G7: 15.3 | H7: 96.95 | J7: 1.2 | K7: 8.98893617 | M7: 2.5 | N7: 8.989361702
A8: 54001 | B8: à | C8: 57500 | E8: 61001 | G8: 15.35 | H8: 96.9 | J8: 1.3 | K8: 8.88893617 | M8: 2.6 | N8: 8.889361702
A9: 57501 | B9: à | C9: 61000 | E9: 64501 | G9: 16.45 | H9: 95.8 | J9: 1.45 | K9: 8.73893617 | M9: 2.75 | N9: 8.739361702
A10: 61001 | B10: à | C10: 64500 | E10: 68001 | G10: 17.55 | H10: 94.7 | J10: 1.65 | K10: 8.53893617 | M10: 2.95 | N10: 8.539361702
A11: 64501 | B11: à | C11: 68000 | E11: 71501 | G11: 18.65 | H11: 93.6 | J11: 1.9 | K11: 8.28893617 | M11: 3.2 | N11: 8.289361702
A12: 68001 | B12: à | C12: 71500 | E12: 75001 | G12: 23.85 | H12: 88.4 | J12: 2.05 | K12: 8.13893617 | M12: 3.35 | N12: 8.139361702
A13: 71501 | B13: à | C13: 75000 | E13: 78501 | G13: 29.15 | H13: 83.1 | J13: 2.3 | K13: 7.88893617 | M13: 3.6 | N13: 7.889361702 | R13: $
A14: 75001 | B14: à | C14: 78500 | E14: 82001 | G14: 34.5 | H14: 77.75 | J14: 2.55 | K14: 7.63893617 | M14: 3.85 | N14: 7.639361702
A15: 78501 | B15: à | C15: 82000 | E15: 86501 | G15: 40 | H15: 72.25 | J15: 2.75 | K15: 7.43893617 | M15: 4.05 | N15: 7.439361702
A16: 82001 | B16: à | C16: 86500 | E16: 91001 | G16: 46.85 | H16: 65.4 | J16: 3.3 | K16: 6.88893617 | M16: 4.6 | N16: 6.889361702
A17: 86501 | B17: à | C17: 91000 | E17: 95501 | G17: 54.35 | H17: 57.9 | J17: 3.8 | K17: 6.38893617 | M17: 5.1 | N17: 6.389361702
A18: 91001 | B18: à | C18: 95500 | E18: 100001 | G18: 60.45 | H18: 51.8 | J18: 4.3 | K18: 5.88893617 | M18: 5.6 | N18: 5.889361702
A19: 95501 | B19: à | C19: 100000 | E19: 104501 | G19: 66.8 | H19: 45.45 | J19: 4.9 | K19: 5.28893617 | M19: 6.2 | N19: 5.289361702
A20: 100001 | B20: à | C20: 104500 | E20: 109001 | G20: 68.75 | H20: 43.5 | J20: 5.45 | K20: 4.73893617 | M20: 6.75 | N20: 4.739361702
A21: 104501 | B21: à | C21: 109000 | E21: 113501 | G21: 70.7 | H21: 41.55 | J21: 6 | K21: 4.18893617 | M21: 7.3 | N21: 4.189361702
A22: 109001 | B22: à | C22: 113500 | E22: 118001 | G22: 73.5 | H22: 38.75 | J22: 6.4 | K22: 3.78893617 | M22: 7.7 | N22: 3.789361702
A23: 113501 | B23: à | C23: 118000 | E23: 123001 | G23: 75 | H23: 37.25 | J23: 6.85 | K23: 3.33893617 | M23: 8.15 | N23: 3.339361702
A24: 118001 | B24: à | C24: 123000 | E24: 128001 | G24: 76.55 | H24: 35.7 | J24: 7.15 | K24: 3.03893617 | M24: 8.45 | N24: 3.039361702
A25: 123001 | B25: à | C25: 128000 | E25: 133001 | G25: 80.25 | H25: 32 | J25: 7.45 | K25: 2.73893617 | M25: 8.75 | N25: 2.739361702
A26: 128001 | B26: à | C26: 133000 | E26: 138001 | G26: 83.95 | H26: 28.3 | J26: 7.75 | K26: 2.43893617 | M26: 9.05 | N26: 2.439361702
A27: 133001 | B27: à | C27: 138000 | E27: 143001 | G27: 87.6 | H27: 24.65 | J27: 8.1 | K27: 2.08893617 | M27: 9.4 | N27: 2.089361702
A28: 138001 | B28: à | C28: 143000 | E28: 148001 | G28: 91.3 | H28: 20.95 | J28: 8.45 | K28: 1.73893617 | M28: 9.75 | N28: 1.739361702
A29: 143001 | B29: à | C29: 148000 | E29: 153001 | G29: 95 | H29: 17.25 | J29: 8.75 | K29: 1.43893617 | M29: 10.05 | N29: 1.439361702
A30: 148001 | B30: à | C30: 153000 | E30: 158001 | G30: 97.5 | H30: 14.75 | J30: 9.25 | K30: 0.9389361702 | M30: 10.55 | N30: 0.9393617021
A31: 153001 | B31: à | C31: 158000 | E31: 163001 | G31: 100 | H31: 12.25 | J31: 9.65 | K31: 0.5389361702 | M31: 10.95 | N31: 0.5393617021
A32: 158001 | B32: à | C32: 163000 | E32: 168001 | G32: 102.5 | H32: 9.75 | J32: 9.75 | K32: 0.4389361702 | M32: 11.05 | N32: 0.4393617021
A33: 163001 | B33: à | C33: 168000 | E33: 173001 | G33: 105 | H33: 7.25 | J33: 9.9 | K33: 0.2889361702 | M33: 11.2 | N33: 0.2893617021
A34: 168001 | B34: à | C34: 173000 | E34: =A35 -> 173001 | G34: 107.5 | H34: 4.75 | J34: 10 | K34: 0.1889361702 | M34: 11.3 | N34: 0.1893617021
A35: 173001 | B35: à | E35: =A35 -> 173001 | G35: 110 | H35: 2.25 | J35: 10.1 | K35: 0.08893617021 | M35: 11.4 | N35: 0.08936170213
